bitfinex-derivatives/quotes_BTCF0:USTF0_20250121
["timestamp","ask_amount","ask_price","bid_price","bid_amount"]
[1737460420309,2.12743721,103930.0,103920.0,0.003]
[1737460420511,2.12743721,103930.0,103920.0,0.004]
[1737460421014,2.12743721,103930.0,103920.0,0.002]
[1737460421601,0.048164,103920.0,103910.0,0.00014477]
[1737460421807,0.408964,103920.0,103910.0,0.00014477]
[1737460422606,0.048164,103920.0,103910.0,0.00014477]
[1737460423615,0.11284221,103920.0,103910.0,0.00114477]
[1737460423815,0.11284221,103920.0,103910.0,0.01720212]
[1737460424018,0.11284221,103920.0,103910.0,0.01720224]
[1737460424212,0.11284221,103920.0,103910.0,0.00214477]
[1737460424619,0.83832042,103920.0,103880.0,0.36088852]
[1737460424921,0.47365621,103890.0,103880.0,0.01514828]
[1737460425114,0.11285621,103890.0,103880.0,0.01514828]
[1737460425306,0.048182,103880.0,103870.0,0.00144379]
[1737460425707,0.048182,103880.0,103870.0,0.01650653]
[1737460425922,0.11286021,103880.0,103870.0,0.01650653]
[1737460426109,0.048182,103880.0,103870.0,0.01650653]
[1737460426715,0.048182,103880.0,103870.0,0.37730653]
[1737460427019,0.04832377,103890.0,103870.0,0.49016974]
[1737460427220,0.04832377,103890.0,103880.0,0.3628]
[1737460427719,0.04832377,103890.0,103880.0,0.37786126]
[1737460427919,0.04832377,103890.0,103880.0,0.37586126]
[1737460428221,0.04932377,103890.0,103880.0,0.37586126]
[1737460428420,0.04932377,103890.0,103880.0,0.3608]
[1737460428812,0.05032377,103890.0,103880.0,0.3628]
[1737460431117,0.05032377,103890.0,103880.0,0.050182]
[1737460431323,0.05032377,103890.0,103880.0,0.410982]
[1737460431527,0.05032377,103890.0,103880.0,0.459782]
[1737460432217,0.00214477,103890.0,103880.0,0.52446021]
[1737460432417,0.00214477,103890.0,103880.0,0.58642066]
[1737460432918,0.23942551,103920.0,103880.0,0.95109415]
[1737460432919,0.19162351,103920.0,103880.0,0.95109415]
[1737460433118,0.14345851,103920.0,103910.0,0.83444621]
[1737460433314,0.14345851,103920.0,103910.0,0.84950494]
[1737460433824,0.14345851,103920.0,103910.0,0.89640494]
[1737460434022,0.03903629,103920.0,103910.0,0.89640494]
[1737460434724,0.03803629,103920.0,103910.0,0.89640494]
[1737460434930,0.03803629,103920.0,103910.0,0.83172673]
[1737460435220,0.08620029,103920.0,103910.0,0.83172673]
[1737460435717,0.08620029,103920.0,103910.0,0.816668]
[1737460435922,0.08620029,103920.0,103910.0,0.83172276]
[1737460436619,0.048164,103920.0,103910.0,0.89640097]
[1737460437319,0.048164,103920.0,103910.0,0.87952276]
[1737460439715,0.11284221,103920.0,103910.0,0.83172276]
[1737460440219,0.048164,103920.0,103910.0,0.83172276]
[1737460440424,0.048164,103920.0,103910.0,0.47092276]
[1737460441421,0.048164,103920.0,103910.0,0.37585476]
[1737460441727,0.11284221,103920.0,103910.0,0.37585476]
[1737460441928,0.048164,103920.0,103910.0,0.37585602]
[1737460442121,0.11284221,103920.0,103910.0,0.37585643]
[1737460442314,0.11284221,103920.0,103910.0,0.01505643]
[1737460442721,0.048168,103910.0,103900.0,0.36094477]
[1737460443016,0.048168,103910.0,103900.0,0.42417508]
[1737460443413,0.11284621,103910.0,103900.0,0.37600208]
[1737460443826,0.048168,103910.0,103900.0,0.42417508]
[1737460444030,0.048168,103910.0,103900.0,0.42717508]
[1737460444432,0.048168,103910.0,103900.0,0.37900208]
[1737460444624,0.47364621,103910.0,103900.0,0.01820208]
[1737460444826,0.11284621,103910.0,103900.0,0.01820208]
[1737460445732,0.11284621,103910.0,103900.0,0.01820405]
[1737460446532,0.12262658,103910.0,103900.0,0.01820405]
[1737460447035,0.12262658,103910.0,103900.0,0.00314477]
[1737460447227,0.12262658,103910.0,103900.0,0.01820361]
[1737460447728,0.26608509,103910.0,103900.0,0.01820358]
[1737460450733,0.20140688,103910.0,103900.0,0.01820358]
[1737460451326,0.26608509,103910.0,103900.0,0.01820358]
[1737460451527,0.20140688,103910.0,103900.0,0.01820358]
[1737460451938,0.14345851,103910.0,103900.0,0.42717658]
[1737460452127,0.14345851,103910.0,103900.0,0.58665479]
[1737460454427,0.14345851,103910.0,103900.0,0.52197658]
[1737460454428,0.19162651,103910.0,103900.0,0.52197658]
[1737460455333,0.19162651,103910.0,103900.0,0.58665479]
[1737460455534,0.048168,103910.0,103900.0,0.58665479]
[1737460455734,0.048168,103910.0,103900.0,0.52197658]
[1737460457237,0.048168,103910.0,103900.0,0.58665479]
[1737460457442,0.048168,103910.0,103900.0,0.52197658]
[1737460458339,0.048168,103910.0,103900.0,0.58665479]
[1737460458530,0.35865006,103930.0,103900.0,0.58665479]
[1737460458730,0.048166,103920.0,103910.0,0.408967]
[1737460458931,0.048166,103920.0,103910.0,0.42402581]
[1737460459231,0.19162451,103920.0,103910.0,0.42402581]
[1737460460336,0.19162451,103920.0,103910.0,0.47252581]
[1737460462342,0.14345851,103920.0,103910.0,0.53720402]
[1737460463339,0.14345851,103920.0,103910.0,0.47252581]
[1737460463539,0.14345851,103920.0,103910.0,0.56129101]
[1737460467242,0.08641093,103920.0,103910.0,0.56129101]
[1737460467441,0.08641093,103920.0,103910.0,0.53720402]
[1737460468640,0.08641093,103920.0,103910.0,0.47252581]
[1737460468841,0.08641093,103920.0,103910.0,0.53920402]
[1737460469340,0.08641093,103920.0,103910.0,0.48424489]
[1737460469544,0.13457493,103920.0,103910.0,0.48424489]
[1737460469740,0.19925314,103920.0,103910.0,0.48524489]
[1737460469940,0.13457493,103920.0,103910.0,0.47552581]
[1737460470741,0.24555314,103920.0,103910.0,0.01805881]
[1737460470936,0.28027493,103920.0,103910.0,0.06622681]
[1737460471149,0.34495314,103920.0,103910.0,0.01805881]
[1737460471740,0.70575314,103920.0,103910.0,0.04215118]
[1737460472446,0.28027493,103920.0,103910.0,0.04215118]
[1737460472845,0.28027493,103920.0,103910.0,0.45111918]
[1737460473036,0.34495314,103920.0,103910.0,0.04215118]
[1737460473437,0.35473925,103920.0,103910.0,0.04215118]
[1737460473636,0.35473925,103920.0,103910.0,0.40295118]
[1737460474939,0.71553925,103920.0,103910.0,0.04215118]
[1737460475143,0.71553925,103920.0,103910.0,0.01805881]
[1737460475343,0.69380653,103920.0,103910.0,0.01805881]
[1737460475743,0.048168,103910.0,103900.0,0.00014477]
[1737460475946,0.11284621,103910.0,103900.0,0.02423967]
[1737460476343,0.47364621,103910.0,103900.0,0.02423967]
[1737460476555,0.11284621,103910.0,103900.0,0.02423967]
[1737460477050,0.47364621,103910.0,103900.0,0.02723967]
[1737460478243,0.47464621,103910.0,103900.0,0.02723967]
[1737460478548,0.049168,103910.0,103900.0,0.43621267]
[1737460479747,0.001,103910.0,103900.0,0.43621267]
[1737460481641,0.049168,103910.0,103900.0,0.43621267]
[1737460482354,0.049168,103910.0,103900.0,0.43621092]
[1737460483660,0.17385977,103910.0,103900.0,0.43621092]
[1737460486359,0.001,103910.0,103900.0,0.43621092]
[1737460487857,0.001,103910.0,103900.0,0.45126857]
[1737460488055,0.001,103910.0,103900.0,0.45126766]
[1737460488676,0.001,103910.0,103900.0,0.51594587]
[1737460489477,0.17385977,103910.0,103900.0,0.51594587]
[1737460490766,0.17385977,103910.0,103900.0,0.49185363]
[1737460491680,0.17385977,103910.0,103900.0,0.47679598]
[1737460491881,0.17385977,103910.0,103900.0,0.49185223]
[1737460493486,0.14501818,103910.0,103900.0,0.49185223]
[1737460493689,0.14501818,103910.0,103900.0,0.47679598]
[1737460493981,0.14501818,103910.0,103900.0,0.49185206]
[1737460495484,0.14501818,103910.0,103900.0,0.50138777]
[1737460496077,0.14501818,103910.0,103900.0,0.50138778]
[1737460496284,0.00014477,103930.0,103910.0,0.048168]
[1737460496477,0.00014477,103930.0,103920.0,1.04282042]
[1737460496780,0.43170066,103940.0,103930.0,0.048159]
[1737460496991,0.43170066,103940.0,103930.0,0.51277619]
[1737460497982,0.43170066,103940.0,103930.0,0.4886933]
[1737460498386,0.43270066,103940.0,103930.0,0.4886933]
[1737460499179,0.43270066,103940.0,103930.0,0.49832998]
[1737460499775,0.43270066,103940.0,103930.0,0.49932998]
[1737460500676,0.43170066,103940.0,103930.0,0.50032998]
[1737460501079,0.43170066,103940.0,103930.0,0.50032453]
[1737460502779,0.43170066,103940.0,103930.0,0.48527389]
[1737460502978,0.08628925,103940.0,103930.0,0.50032451]
[1737460505285,0.08628925,103940.0,103930.0,0.42600962]
[1737460506377,0.13444325,103940.0,103930.0,0.42600962]
[1737460506780,0.19912146,103940.0,103930.0,0.06520962]
[1737460506984,0.19912146,103940.0,103930.0,0.01705062]
[1737460507187,0.13556146,103940.0,103930.0,0.01705062]
[1737460507789,0.49636146,103940.0,103930.0,0.002]
[1737460508086,0.048159,103930.0,103920.0,0.36094477]
[1737460508398,0.3608,103930.0,103920.0,0.04830877]
[1737460508692,0.02272925,103940.0,103930.0,0.048159]
[1737460508988,0.02272925,103940.0,103930.0,0.52213721]
[1737460509190,0.02272925,103940.0,103930.0,0.457459]
[1737460509389,0.02272925,103940.0,103930.0,0.52213721]
[1737460509778,0.02272925,103940.0,103930.0,0.457459]
[1737460509985,0.02272925,103940.0,103930.0,0.52313721]
[1737460510391,0.00158883,103950.0,103940.0,0.048155]
[1737460510587,0.00158883,103950.0,103940.0,0.408955]
[1737460510989,0.04973883,103950.0,103940.0,0.408955]
[1737460511186,0.09603883,103950.0,103940.0,0.408955]
[1737460511582,0.09703883,103950.0,103940.0,0.408955]
[1737460512189,0.04888883,103950.0,103940.0,0.408955]
[1737460513084,0.04888883,103950.0,103940.0,0.47363321]
[1737460514293,0.04888883,103950.0,103940.0,0.408955]
[1737460515094,0.09703883,103950.0,103940.0,0.408955]
[1737460516186,0.04888883,103950.0,103940.0,0.408955]
[1737460517196,0.09703883,103950.0,103940.0,0.408955]
[1737460519195,0.09703883,103950.0,103940.0,0.048155]
[1737460519389,0.048156,103940.0,103930.0,0.408957]
[1737460519593,0.139056,103940.0,103930.0,0.048157]
[1737460519788,0.139056,103940.0,103930.0,0.408957]
[1737460519998,0.139056,103940.0,103930.0,0.42401086]
[1737460520589,0.139056,103940.0,103930.0,0.37685386]
[1737460521388,0.139056,103940.0,103930.0,0.48969107]
[1737460521998,0.31158638,103940.0,103930.0,0.48969107]
[1737460522898,0.31158638,103940.0,103930.0,0.42501286]
[1737460523692,0.31759171,103940.0,103930.0,0.42501286]
[1737460525194,0.31759171,103940.0,103930.0,0.06421286]
[1737460525995,0.31759171,103940.0,103930.0,0.42501286]
[1737460526398,0.31759171,103940.0,103930.0,0.37685386]
[1737460526798,0.31759171,103940.0,103930.0,0.01605386]
[1737460527799,0.31759171,103940.0,103930.0,0.01605476]
[1737460528191,0.74306992,103940.0,103930.0,0.01605476]
[1737460529894,0.57053954,103940.0,103930.0,0.01605476]
[1737460530400,0.048159,103930.0,103920.0,0.00014477]
[1737460530601,0.47363721,103930.0,103920.0,0.00014477]
[1737460531098,1.97363721,103930.0,103920.0,0.00014477]
[1737460531697,1.97463721,103930.0,103920.0,0.00214477]
[1737460532203,0.048168,103910.0,103900.0,0.17073232]
[1737460532399,0.47364621,103910.0,103900.0,0.17073232]
[1737460532694,0.56184621,103910.0,103900.0,0.17073232]
[1737460533491,0.92264621,103910.0,103900.0,0.17073232]
[1737460533699,0.92264621,103910.0,103890.0,0.00014477]
[1737460533894,0.47365121,103900.0,103890.0,0.00014477]
[1737460534991,0.47465121,103900.0,103890.0,0.00014477]
[1737460535191,0.52085121,103900.0,103890.0,0.00014477]
[1737460537196,0.456173,103900.0,103890.0,0.00014477]
[1737460537492,0.049173,103900.0,103890.0,0.00014477]
[1737460538293,0.049173,103900.0,103890.0,0.42562298]
[1737460538587,0.22181006,103900.0,103890.0,0.36094477]
[1737460538794,0.22181006,103900.0,103890.0,0.40912277]
[1737460538994,0.22181006,103900.0,103890.0,0.36094477]
[1737460539190,0.22181006,103900.0,103890.0,0.38504065]
[1737460539395,0.22181006,103900.0,103890.0,0.36094477]
[1737460541999,0.30758735,103900.0,103890.0,0.36094477]
[1737460542202,0.31384247,103900.0,103890.0,0.37600481]
[1737460545109,0.31384247,103900.0,103890.0,0.40010038]
[1737460545811,0.17027894,103900.0,103890.0,0.40010038]
[1737460547103,0.17027894,103900.0,103890.0,0.40010019]
[1737460555822,0.19899165,103900.0,103890.0,0.40010019]
[1737460556411,0.62446986,103900.0,103890.0,0.03930019]
[1737460556611,0.68914807,103900.0,103890.0,0.03930019]
[1737460556912,0.048187,103870.0,103860.0,0.5329763]
[1737460557118,0.11286521,103870.0,103860.0,0.53924742]
[1737460557508,0.47366521,103870.0,103860.0,0.17844742]
[1737460557707,0.56696521,103870.0,103860.0,0.17844742]
[1737460557909,0.408987,103870.0,103860.0,0.17844742]
[1737460558111,0.002,103870.0,103860.0,0.17844742]
[1737460558323,0.11486521,103870.0,103860.0,0.17844742]
[1737460559014,0.050187,103870.0,103860.0,0.17844742]
[1737460559717,0.19375053,103870.0,103860.0,0.0077151]
[1737460561419,0.19375053,103870.0,103860.0,0.4167071]
[1737460562511,0.25842874,103870.0,103860.0,0.0077151]
[1737460562718,0.26455228,103870.0,103860.0,0.0077151]
[1737460563219,0.31025228,103870.0,103860.0,0.0077151]
[1737460564515,0.73573049,103870.0,103860.0,0.00627112]
[1737460564720,0.048192,103860.0,103850.0,0.00014477]
[1737460565021,0.56817021,103860.0,103850.0,0.00014477]
[1737460565214,0.63284842,103860.0,103850.0,0.0152125]
[1737460566019,0.63284842,103860.0,103850.0,0.00014477]
[1737460567012,0.63284842,103860.0,103850.0,0.00624725]
[1737460567725,0.63384842,103860.0,103850.0,0.00624725]
[1737460567919,0.63484842,103860.0,103850.0,0.00624725]
[1737460568321,0.63484842,103860.0,103850.0,0.00014477]
[1737460568820,0.80748548,103860.0,103850.0,0.00014477]
[1737460569023,0.67812906,103860.0,103850.0,0.00014477]
[1737460569224,0.38200727,103860.0,103850.0,0.00014477]
[1737460569625,0.38200727,103860.0,103850.0,0.0152116]
[1737460570227,0.38200727,103860.0,103850.0,0.36094477]
[1737460572418,0.20937021,103860.0,103850.0,0.36094477]
[1737460572820,0.20937021,103860.0,103850.0,0.37601121]
[1737460573530,0.20937021,103860.0,103850.0,0.36094477]
[1737460579626,0.20937021,103860.0,103850.0,0.37601114]
[1737460581433,0.20937021,103860.0,103850.0,0.36094477]
[1737460582330,1.70937021,103860.0,103850.0,0.36094477]
[1737460583840,1.66107021,103860.0,103850.0,0.36094477]
[1737460584027,0.11487021,103860.0,103850.0,0.36094477]
[1737460584341,0.050192,103860.0,103850.0,0.36094477]
[1737460585336,0.19388796,103860.0,103850.0,0.36094477]
[1737460586032,0.25856617,103860.0,103850.0,0.36094477]
[1737460589339,0.11487021,103860.0,103850.0,0.36094477]
[1737460593442,0.050192,103860.0,103850.0,0.36094477]
[1737460593740,0.050192,103860.0,103850.0,0.40914077]
[1737460595343,0.050192,103860.0,103850.0,0.36094477]
[1737460595548,0.11487021,103860.0,103850.0,0.36094477]
[1737460595742,0.11487021,103860.0,103850.0,0.40594477]
[1737460597845,0.11487021,103860.0,103850.0,0.04514477]
[1737460598045,0.11487021,103860.0,103850.0,0.40594477]
[1737460598944,0.11487021,103860.0,103850.0,0.36094477]
[1737460599542,0.11487021,103860.0,103850.0,0.00014477]
[1737460599936,0.31578566,103860.0,103850.0,0.00014477]
[1737460600145,0.42616387,103860.0,103850.0,0.00014477]
[1737460600438,0.72228566,103860.0,103850.0,0.00014477]
[1737460600644,0.40608566,103860.0,103850.0,0.00014477]
[1737460600946,0.40608566,103860.0,103850.0,0.36094477]
[1737460601147,0.45018566,103860.0,103850.0,0.36094477]
[1737460602144,0.44918566,103860.0,103850.0,0.36094477]
[1737460602646,0.31378566,103860.0,103850.0,0.36094477]
[1737460605757,0.31378566,103860.0,103850.0,0.3760108]
[1737460606249,0.31378566,103860.0,103850.0,0.4233108]
[1737460606446,0.37846387,103860.0,103850.0,0.0152108]
[1737460606651,0.78716387,103860.0,103850.0,0.0152108]
[1737460606851,0.83366387,103860.0,103850.0,0.0152108]
[1737460608952,0.83366387,103860.0,103850.0,0.00657039]
[1737460609652,0.048201,103840.0,103830.0,0.85252989]
[1737460609847,0.53835742,103840.0,103830.0,0.39842989]
[1737460610055,0.47367921,103840.0,103830.0,0.39842989]
[1737460610753,0.048206,103830.0,103820.0,0.40664477]
[1737460610954,0.11288421,103830.0,103820.0,0.40664477]
[1737460611855,0.11288421,103830.0,103820.0,0.42171536]
[1737460612047,0.11388421,103830.0,103820.0,0.42171536]
[1737460612650,0.11388421,103830.0,103820.0,0.37601536]
[1737460612954,0.19818421,103830.0,103820.0,0.37601536]
[1737460613759,0.19918421,103830.0,103820.0,0.37601536]
[1737460614260,0.00014477,103850.0,103820.0,0.48890357]
[1737460614448,0.00014477,103850.0,103840.0,0.83447921]
[1737460615059,0.00014477,103850.0,103840.0,0.91877921]
[1737460615358,0.00114477,103850.0,103840.0,0.91877921]
[1737460615543,0.11401898,103850.0,103840.0,0.8059]
[1737460615748,0.11401898,103850.0,103840.0,0.4451]
[1737460616066,0.04834077,103850.0,103840.0,0.4451]
[1737460616250,0.04834077,103850.0,103840.0,0.46016678]
[1737460618157,0.11301898,103850.0,103840.0,0.46016678]
[1737460618561,0.28596776,103850.0,103840.0,0.46016678]
[1737460618765,0.64676776,103850.0,103840.0,0.01506678]
[1737460619064,0.32706776,103850.0,103840.0,0.01506678]
[1737460619567,0.048201,103840.0,103830.0,0.4014]
[1737460619747,0.11287921,103840.0,103830.0,0.4014]
[1737460620050,0.11287921,103840.0,103830.0,0.05566902]
[1737460620452,0.11287921,103840.0,103830.0,0.41646902]
[1737460620663,0.11287921,103840.0,103830.0,0.05566902]
[1737460621455,0.048201,103840.0,103830.0,0.05566902]
[1737460621656,0.048201,103840.0,103830.0,0.48214723]
[1737460621864,0.048201,103840.0,103830.0,0.41746902]
[1737460622254,0.049201,103840.0,103830.0,0.41846902]
[1737460622455,0.22214978,103840.0,103830.0,0.41846902]
[1737460622755,0.22214978,103840.0,103830.0,0.48314723]
[1737460622964,0.00014477,103850.0,103840.0,0.048201]
[1737460623255,0.04834077,103850.0,103840.0,0.409001]
[1737460623460,0.04834077,103850.0,103840.0,0.47367921]
[1737460623461,0.00014477,103850.0,103840.0,0.47367921]
[1737460624259,0.24910345,103870.0,103850.0,0.048192]
[1737460624456,0.24910345,103870.0,103860.0,0.092592]
[1737460624655,0.24910345,103870.0,103860.0,0.0444]
[1737460624857,0.24910345,103870.0,103860.0,0.4052]
[1737460625360,0.25010345,103870.0,103860.0,0.4052]
[1737460625668,0.25110345,103870.0,103860.0,0.4052]
[1737460625853,0.31478166,103870.0,103860.0,0.4052]
[1737460626053,0.31578166,103870.0,103860.0,0.4052]
[1737460626564,0.050188,103870.0,103860.0,0.4052]
[1737460626953,0.05740803,103870.0,103860.0,0.4052]
[1737460627359,0.05740803,103870.0,103860.0,0.4495]
[1737460627757,0.12208624,103870.0,103850.0,0.40314477]
[1737460627964,0.11287021,103860.0,103850.0,0.36094477]
[1737460628562,0.47367021,103860.0,103850.0,0.00014477]
[1737460628964,0.17754842,103860.0,103850.0,0.00014477]
[1737460629167,0.11287021,103860.0,103850.0,0.00014477]
[1737460629363,0.47367021,103860.0,103850.0,0.00014477]
[1737460630058,0.53834842,103860.0,103850.0,0.00014477]
[1737460630463,0.47367021,103860.0,103850.0,0.00014477]
[1737460630771,0.53934842,103860.0,103850.0,0.00014477]
[1737460631661,0.47467021,103860.0,103850.0,0.00014477]
[1737460633864,0.53934842,103860.0,103850.0,0.00014477]
[1737460634073,0.53934842,103860.0,103830.0,0.3608]
[1737460634074,0.048201,103840.0,103830.0,0.3608]
[1737460634366,0.048206,103830.0,103820.0,0.44684448]
[1737460634870,0.048206,103830.0,103820.0,0.47698505]
[1737460635373,0.11288421,103830.0,103820.0,0.47698505]
[1737460635562,0.11388421,103830.0,103820.0,0.47898505]
[1737460635964,0.11388421,103830.0,103820.0,0.11818505]
[1737460636158,0.11388421,103830.0,103820.0,0.47898505]
[1737460636462,0.11388421,103830.0,103820.0,0.11818505]
[1737460636875,0.049206,103830.0,103820.0,0.10311471]
[1737460637065,0.050206,103830.0,103820.0,0.10411471]
[1737460637265,0.050206,103830.0,103820.0,0.46491471]
[1737460638265,0.050206,103830.0,103820.0,0.46347023]
[1737460638467,0.050206,103830.0,103820.0,0.52814844]
[1737460638864,0.05821548,103830.0,103820.0,0.52814844]
[1737460639168,0.05821548,103830.0,103820.0,0.57635844]
[1737460641071,0.01000948,103830.0,103820.0,0.57635844]
[1737460641873,0.002,103830.0,103820.0,0.57635844]
[1737460642275,0.050206,103830.0,103820.0,0.57635844]
[1737460642468,0.050206,103830.0,103820.0,0.46347023]
[1737460646170,0.11488421,103830.0,103820.0,0.01807023]
[1737460646377,0.050206,103830.0,103820.0,0.37887023]
[1737460646861,0.050206,103830.0,103820.0,0.3638]
[1737460647271,0.050206,103830.0,103820.0,0.003]
[1737460647674,0.050206,103830.0,103820.0,0.01807087]
[1737460648470,0.050206,103830.0,103820.0,0.37887087]
[1737460649562,0.54036242,103830.0,103820.0,0.01807087]
[1737460649761,0.048215,103810.0,103800.0,0.49842989]
[1737460649971,0.47369321,103810.0,103800.0,0.49842989]
[1737460650173,0.53837142,103810.0,103800.0,0.27073232]
[1737460650569,0.47369321,103810.0,103800.0,0.27073232]
[1737460650970,0.53837142,103810.0,103800.0,0.27073232]
[1737460651167,0.048219,103800.0,103790.0,0.22784234]
[1737460651364,0.51319721,103800.0,103790.0,0.22784234]
[1737460651666,0.51319721,103800.0,103790.0,0.25196378]
[1737460651880,0.57787542,103800.0,103790.0,0.25196378]
[1737460652365,0.57887542,103800.0,103790.0,0.22784234]
[1737460652772,0.57887542,103800.0,103780.0,0.28177895]
[1737460653074,0.57998042,103790.0,103770.0,0.34123705]
[1737460653276,0.53838542,103780.0,103770.0,0.34123705]
[1737460653969,2.03838542,103780.0,103770.0,0.34123705]
[1737460654180,0.048233,103770.0,103760.0,4.827e-05]
[1737460654480,0.53838942,103770.0,103760.0,4.827e-05]
[1737460654675,0.17758942,103770.0,103760.0,4.827e-05]
[1737460655074,0.21648942,103770.0,103760.0,4.827e-05]
[1737460655577,0.57828942,103770.0,103760.0,4.827e-05]
[1737460655876,0.51361121,103770.0,103760.0,4.827e-05]
[1737460656463,0.15281121,103770.0,103760.0,4.827e-05]
[1737460657081,0.15381121,103770.0,103760.0,4.827e-05]
[1737460657276,0.16195495,103770.0,103760.0,4.827e-05]
[1737460657578,0.16195495,103770.0,103760.0,0.02417625]
[1737460657774,0.05837674,103770.0,103760.0,0.38497625]
[1737460657976,0.002,103770.0,103760.0,0.43321425]
[1737460658779,0.13268004,103770.0,103760.0,0.38497625]
[1737460658974,0.06800183,103770.0,103760.0,0.43321425]
[1737460659281,0.06800183,103770.0,103760.0,0.38497625]
[1737460659775,0.06800183,103770.0,103760.0,0.43321425]
[1737460660973,0.06800183,103770.0,103760.0,0.49789246]
[1737460660974,0.01976883,103770.0,103760.0,0.49789246]
[1737460661185,0.17291397,103780.0,103770.0,0.048233]
[1737460661483,0.17291397,103780.0,103770.0,0.447233]
[1737460661681,0.22114297,103780.0,103770.0,0.447233]
[1737460661872,0.17291397,103780.0,103770.0,0.487333]
[1737460662074,0.20088391,103780.0,103770.0,0.5670853]
[1737460662280,0.04837177,103790.0,103780.0,0.048229]
[1737460662472,0.17291397,103800.0,103780.0,0.47370721]
[1737460662773,0.22113497,103800.0,103790.0,0.409024]
[1737460663479,0.28581318,103800.0,103790.0,0.3608]
[1737460663666,0.28581318,103800.0,103790.0,0.37587409]
[1737460664069,0.28581318,103800.0,103790.0,0.3608]
[1737460664581,1.78581318,103800.0,103790.0,0.3608]
[1737460665068,0.048224,103790.0,103780.0,0.36194477]
[1737460665374,0.087324,103790.0,103780.0,0.36094477]
[1737460665776,0.127024,103790.0,103780.0,0.36094477]
[1737460665976,0.19170221,103790.0,103780.0,0.36094477]
[1737460666172,0.19170221,103790.0,103780.0,0.36194477]
[1737460666477,0.048233,103770.0,103760.0,0.00144528]
[1737460666666,0.11291121,103770.0,103760.0,0.00144528]
[1737460666975,0.11291121,103770.0,103760.0,0.01652341]
[1737460667479,0.048233,103770.0,103760.0,0.37732341]
[1737460667981,0.049233,103770.0,103760.0,0.37732341]
[1737460668574,0.050233,103770.0,103760.0,0.37832341]
[1737460668780,0.050233,103770.0,103760.0,0.37687813]
[1737460669078,0.050233,103770.0,103760.0,0.48979434]
[1737460669274,0.050233,103770.0,103760.0,0.42511613]
[1737460669771,0.002,103770.0,103760.0,0.48979434]
[1737460670173,0.002,103770.0,103760.0,0.47471621]
[1737460673978,0.048222,103800.0,103770.0,0.096463]
[1737460674173,0.048222,103800.0,103790.0,0.409024]
[1737460675184,0.049222,103800.0,103790.0,0.409024]
[1737460676379,0.049222,103800.0,103790.0,0.3608]
[1737460676580,0.11390021,103800.0,103790.0,0.3608]
[1737460677080,0.049222,103800.0,103790.0,0.3608]
[1737460677476,0.11390021,103800.0,103790.0,0.3608]
[1737460677677,0.11390021,103800.0,103790.0,0.411024]
[1737460677873,0.11290021,103800.0,103790.0,0.412024]
[1737460678273,0.06467821,103800.0,103790.0,0.412024]
[1737460678582,0.2013948,103810.0,103790.0,0.412024]
[1737460678777,0.2013948,103810.0,103800.0,0.3608]
[1737460679682,0.2023948,103810.0,103800.0,0.3608]
[1737460679979,0.37530877,103810.0,103800.0,0.3608]
[1737460681382,0.048219,103800.0,103790.0,0.3608]
[1737460681583,0.048224,103790.0,103780.0,0.40917377]
[1737460681887,0.11290221,103790.0,103780.0,0.40917377]
[1737460682078,0.048224,103790.0,103780.0,0.40917377]
[1737460682285,0.11290221,103790.0,103780.0,0.42424898]
[1737460682790,0.11290221,103790.0,103780.0,0.37601998]
[1737460683191,0.15340221,103790.0,103780.0,0.37601998]
[1737460683393,0.15340221,103790.0,103780.0,0.37801998]
[1737460684089,0.15340221,103790.0,103780.0,0.01821998]
[1737460684090,0.15440221,103790.0,103780.0,0.01821998]
[1737460684887,0.15440221,103790.0,103780.0,0.37901998]
[1737460685490,0.15440221,103790.0,103780.0,0.37801998]
[1737460685798,0.088724,103790.0,103780.0,0.37801998]
[1737460685992,0.088724,103790.0,103780.0,0.42624898]
[1737460686189,0.22113597,103800.0,103780.0,0.42624898]
[1737460686495,0.29401253,103800.0,103780.0,0.42624898]
[1737460686694,0.24579053,103800.0,103780.0,0.42624898]
[1737460686892,0.048224,103790.0,103780.0,0.42624898]
[1737460687504,0.11290221,103790.0,103780.0,0.42524898]
[1737460687705,0.048224,103790.0,103780.0,0.42524898]
[1737460688007,0.22113797,103790.0,103780.0,0.42424898]
[1737460688206,0.22113797,103790.0,103780.0,0.42524898]
[1737460689296,0.22113797,103790.0,103780.0,0.42624898]
[1737460691806,0.22113797,103790.0,103780.0,0.37801998]
[1737460692007,0.28581618,103790.0,103780.0,0.37801998]
[1737460692307,0.22113797,103790.0,103780.0,0.37801998]
[1737460693197,0.22113797,103790.0,103780.0,0.42624898]
[1737460694803,0.048224,103790.0,103780.0,0.42624898]
[1737460696303,0.05642035,103800.0,103790.0,0.048224]
[1737460696506,0.05641735,103800.0,103790.0,0.409024]
[1737460696699,0.048219,103800.0,103790.0,0.409024]
[1737460696905,0.43435543,103810.0,103790.0,0.409024]
[1737460697099,0.37812956,103810.0,103790.0,0.40902]
[1737460697503,0.001,103800.0,103790.0,0.40902]
[1737460698208,0.37912956,103810.0,103800.0,0.048219]
[1737460698409,0.38012956,103810.0,103800.0,0.409019]
[1737460698611,0.24389232,103810.0,103800.0,0.3608]
[1737460698811,0.24289232,103810.0,103800.0,0.3608]
[1737460699003,0.24189232,103810.0,103800.0,0.3608]
[1737460700812,0.17821411,103810.0,103800.0,0.3608]
[1737460701612,0.048219,103800.0,103790.0,0.3608]
[1737460701916,0.11289721,103800.0,103790.0,0.3608]
[1737460702411,0.11289721,103800.0,103790.0,0.37587493]
[1737460703710,0.11289721,103800.0,103790.0,0.37687493]
[1737460703908,0.11289721,103800.0,103790.0,0.37787493]
[1737460705810,0.048219,103800.0,103790.0,0.37787493]
[1737460706010,0.048219,103800.0,103790.0,0.37821444]
[1737460706711,0.048219,103800.0,103790.0,0.01741444]
[1737460706712,0.11289721,103800.0,103790.0,0.01741444]
[1737460707213,0.11289721,103800.0,103790.0,0.37821444]
[1737460707520,0.048219,103800.0,103790.0,0.01741444]
[1737460707707,0.048219,103800.0,103790.0,0.37821444]
[1737460707910,0.049219,103800.0,103790.0,0.37721444]
[1737460708217,0.049219,103800.0,103790.0,0.00033951]
[1737460709005,0.11389721,103800.0,103790.0,0.00033951]
[1737460709805,0.11389721,103800.0,103790.0,0.01541457]
[1737460712321,0.11389721,103800.0,103790.0,0.37621457]
[1737460715121,0.049219,103800.0,103790.0,0.37621457]
[1737460715517,0.049219,103800.0,103790.0,0.40936351]
[1737460716622,0.001,103800.0,103790.0,0.40936351]
[1737460717526,0.049219,103800.0,103790.0,0.40936351]
[1737460719522,0.001,103800.0,103790.0,0.50424172]
[1737460723621,0.14539645,103800.0,103790.0,0.50424172]
[1737460731232,0.11642171,103800.0,103790.0,0.50424172]
[1737460736042,0.11642171,103800.0,103790.0,0.54324172]
[1737460739934,0.11642171,103800.0,103790.0,0.51304172]
[1737460740141,0.19852171,103800.0,103790.0,0.47404172]